fUSD/lending_fUSD_20251221
["ID","MTS","AMOUNT","RATE_DAILY","PERIOD"]
[399425582,1766341838370,-500.0,9.877e-05,2]
[399425584,1766341838380,-500.0,9.877e-05,2]
[399425586,1766341838389,-500.0,9.877e-05,2]
[399425588,1766341838399,-500.0,9.877e-05,2]
[399425590,1766341838407,-500.0,9.877e-05,2]
[399425592,1766341838418,-500.0,9.877e-05,2]
[399425594,1766341838428,-500.0,9.877e-05,2]
[399425596,1766341838438,-500.0,9.877e-05,2]
[399425598,1766341838447,-500.0,9.877e-05,2]
[399425600,1766341838457,-500.0,9.877e-05,2]
[399425602,1766341838466,-500.0,9.877e-05,2]
[399425604,1766341838475,-393.30873524,9.879e-05,2]
[399425605,1766341838484,-319.7157161,9.879e-05,2]
[399425607,1766341838494,-500.0,9.879e-05,2]
[399425609,1766341838503,-182.48400834,9.879e-05,2]
[399425611,1766341838514,-480515.21380862,9.88e-05,2]
[399425613,1766341838527,-231.0,9.88e-05,2]
[399425615,1766341838544,-2500.0,9.88e-05,2]
[399425617,1766341838553,-250.0,9.9e-05,2]
[399425619,1766341838563,-250.0,9.9e-05,2]
[399425621,1766341838573,-250.0,9.9e-05,2]
[399425623,1766341838582,-250.0,9.9e-05,2]
[399425625,1766341838591,-250.0,9.9e-05,2]
[399425627,1766341838601,-250.0,9.9e-05,2]
[399425629,1766341838610,-250.0,9.9e-05,2]
[399425631,1766341838621,-250.0,9.9e-05,2]
[399425633,1766341838630,-250.0,9.9e-05,2]
[399425635,1766341838640,-250.0,9.9e-05,2]
[399425637,1766341838649,-250.0,9.9e-05,2]
[399425638,1766341838658,-250.0,9.9e-05,2]
[399425640,1766341838667,-250.0,9.9e-05,2]
[399425642,1766341838677,-250.0,9.9e-05,2]
[399425644,1766341838687,-250.0,9.9e-05,2]
[399425646,1766341838697,-250.0,9.9e-05,2]
[399425648,1766341838707,-250.0,9.9e-05,2]
[399425650,1766341838718,-250.0,9.9e-05,2]
[399425652,1766341838728,-250.0,9.9e-05,2]
[399425653,1766341838737,-250.0,9.9e-05,2]
[399425655,1766341838747,-250.0,9.9e-05,2]
[399425657,1766341838759,-250.0,9.9e-05,2]
[399425658,1766341838769,-250.0,9.9e-05,2]
[399425659,1766341838779,-291.5,9.9e-05,2]
[399425660,1766341838788,-500.0,9.977e-05,2]
[399425661,1766341838798,-476.42499103,9.977e-05,2]
[399425662,1766341838807,-19809.3458074,9.977e-05,2]
[399425663,1766341838817,-4999.99,9.978e-05,2]
[399425664,1766341838826,-405.18,9.978e-05,2]
[399425665,1766341838836,-299.99,9.978e-05,2]
[399425666,1766341838845,-78835.58,9.978e-05,2]
[399425667,1766341838855,-57967.24,9.978e-05,2]
[399425668,1766341838864,-150.99,9.978e-05,2]
[399425669,1766341838874,-332.67,9.978e-05,2]
[399425670,1766341838883,-9999.99,9.978e-05,2]
[399425671,1766341838893,-29214.8,9.979e-05,2]
[399425672,1766341838903,-265476.8776152,9.98e-05,2]
[399425673,1766341838913,-2185.13,9.98e-05,2]
[399425674,1766341838923,-1000.0,9.984e-05,2]
[399425675,1766341838932,-195.38147603,0.0001,2]
[399425676,1766341838942,-195.38147603,0.0001,2]
[399425677,1766341838952,-195.38147603,0.0001,2]
[399425678,1766341838962,-151.0,0.0001,2]
[399425679,1766341838971,-151.0,0.0001,2]
[399425680,1766341838981,-151.0,0.0001,2]
[399425681,1766341838991,-151.0,0.0001,2]
[399425682,1766341839000,-151.0,0.0001,2]
[399425683,1766341839010,-151.0,0.0001,2]
[399425684,1766341839019,-151.0,0.0001,2]
[399425685,1766341839029,-151.0,0.0001,2]
[399425686,1766341839039,-151.0,0.0001,2]
[399425687,1766341839049,-151.0,0.0001,2]
[399425688,1766341839059,-151.0,0.0001,2]
[399425689,1766341839068,-151.0,0.0001,2]
[399425690,1766341839078,-151.0,0.0001,2]
[399425691,1766341839088,-151.0,0.0001,2]
[399425692,1766341839097,-151.0,0.0001,2]
[399425693,1766341839107,-151.0,0.0001,2]
[399425694,1766341839116,-151.0,0.0001,2]
[399425695,1766341839126,-151.0,0.0001,2]
[399425696,1766341839135,-151.0,0.0001,2]
[399425697,1766341839144,-151.0,0.0001,2]
[399425698,1766341839154,-757.15342507,0.0001,2]
[399425699,1766341839163,-37678.58,0.00010039,2]
[399425700,1766341839173,-1258.27,0.00010132,2]
[399425701,1766341839182,-500.0,0.00010251,2]
[399425702,1766341839191,-2185.13,0.00010254,2]
[399425703,1766341839202,-1258.27,0.00010414,2]
[399425704,1766341839211,-500.0,0.00010525,2]
[399425705,1766341839220,-2185.13,0.00010528,2]
[399425706,1766341839230,-4265.54,0.00010595,2]
[399425707,1766341839239,-1543.79,0.00010595,2]
[399425708,1766341839249,-13312.29,0.00010595,2]
[399425709,1766341839258,-9999.99,0.00010595,2]
[399425710,1766341839268,-344.61,0.00010595,2]
[399425711,1766341839278,-1575.25,0.00010595,2]
[399425712,1766341839290,-7621.04,0.00010595,2]
[399425713,1766341839299,-942.62870135,0.00010595,2]
[399425714,1766341839309,-151.0,0.00010679,2]
[399425715,1766341839319,-318891.43011361,0.00010682,2]
[399425716,1766341839330,-1258.27,0.00010695,2]
[399425717,1766341839340,-267.40656056,0.000107,2]
[399425718,1766341839350,-985.00508218,0.000108,2]
[399425719,1766341839361,-2185.13,0.00010802,2]
[399425720,1766341839371,-250.0,0.00010867,2]
[399425721,1766341839380,-420.0,0.00010867,2]
[399425722,1766341839390,-1680.0,0.00010867,2]
[399425723,1766341839399,-255.0,0.00010867,2]
[399425724,1766341839409,-9999.99,0.000109,2]
[399425725,1766341839418,-150.99,0.000109,2]
[399425726,1766341839428,-999.99,0.000109,2]
[399425727,1766341839437,-9999.99,0.000109,2]
[399425728,1766341839446,-9999.99,0.000109,2]
[399425729,1766341839456,-1488.67084222,0.000109,2]
[399425730,1766341839466,-1488.67084219,0.000109,2]
[399425731,1766341839476,-159.40829824,0.00010975,2]
[399425732,1766341839486,-195.0,0.00010975,2]
[399425733,1766341839496,-300.0,0.00010975,2]
[399425734,1766341839506,-1680.0,0.00010975,2]
[399425735,1766341839516,-195.0,0.00010976,2]
[399425736,1766341839525,-300.0,0.00010976,2]
[399425737,1766341839534,-347.74704666,0.00010976,2]
[399425738,1766341839543,-300.0,0.00010976,2]
[399425739,1766341839554,-250.0,0.00010976,2]
[399425740,1766341839576,-300.0,0.00010976,2]
[399425741,1766341839586,-5531.73266005,0.00011,2]
[399425742,1766341839595,-2185.13,0.00011076,2]
[399425743,1766341839604,-2185.13,0.0001135,2]
[399425744,1766341839614,-13240.3514313,0.00011427,2]
[399425745,1766341839624,-3240.0,0.00011507,2]
[399425746,1766341839633,-2185.13,0.00011624,2]
[399425747,1766341839642,-335.60927703,0.00011662,2]
[399425748,1766341839652,-4420.0625024,0.00011737,2]
[399425749,1766341839662,-2954.3217352,0.0001175,2]
[399425750,1766341839672,-1488.67084219,0.00011884,2]
[399425751,1766341839681,-2185.13,0.00011898,2]
[399425752,1766341839692,-1500.0,0.00011931,2]
[399425753,1766341839702,-24607.21141247,0.0001195,2]
[399425754,1766341839711,-587.0,0.00011954,2]
[399425755,1766341839721,-2351.0,0.00011954,2]
[399425756,1766341839731,-433.0,0.00011954,2]
[399425757,1766341839740,-5927.98541634,0.00012,2]
[399425758,1766341839749,-69745.3399174,0.00012029,2]
[399425759,1766341839759,-333.0,0.00012072,2]
[399425760,1766341839768,-986.249254,0.0001213,2]
[399425761,1766341839777,-1911.40558377,0.00012134,2]
[399425762,1766341839787,-291.33,0.00012144,2]
[399425763,1766341839796,-2185.13,0.00012172,2]
[399425764,1766341839805,-13402.53365743,0.0001227,2]
[399425765,1766341839815,-256.42,0.00012296,2]
[399425766,1766341839824,-1852.42,0.00012322,2]
[399425767,1766341839834,-250.0,0.00012442,2]
[399425768,1766341839843,-2185.13,0.00012446,2]
[399425769,1766341839852,-15562.2888653,0.00012486,2]
[399425770,1766341839862,-2185.13,0.0001272,2]
[399425771,1766341839872,-1488.67084219,0.00012887,2]
[399425772,1766341839881,-171.4,0.00012921,2]
[399425773,1766341839891,-129043.6888462,0.0001299,2]
[399425774,1766341839900,-2185.13,0.00012994,2]
[399425775,1766341839909,-4412.45542403,0.00013,2]
[399425776,1766341839918,-5328.33632405,0.0001305,2]
[399425777,1766341839928,-823.0,0.00013149,2]
[399425778,1766341839937,-3292.0,0.00013149,2]
[399425779,1766341839946,-736.0,0.00013149,2]
[399425780,1766341839956,-2185.13,0.00013268,2]
[399425781,1766341839966,-1000.0,0.000135,2]
[399425782,1766341839976,-2185.13,0.00013542,2]
[399425783,1766341839986,-500.0,0.00013643,2]
[399425784,1766341839996,-501.40165484,0.00013643,2]
[399425785,1766341840005,-500.0,0.00013643,2]
[399425786,1766341840014,-500.0,0.00013643,2]
[399425788,1766341840024,-500.0,0.00013643,2]
[399425789,1766341840034,-500.0,0.00013643,2]
[399425790,1766341840044,-550.17823057,0.00013643,2]
[399425791,1766341840055,-500.0,0.00013643,2]
[399425792,1766341840064,-500.0,0.00013643,2]
[399425793,1766341840075,-500.0,0.00013643,2]
[399425794,1766341840084,-264.97471348,0.00013643,2]
[399425795,1766341840094,-500.0,0.00013643,2]
[399425796,1766341840106,-500.25022933,0.00013643,2]
[399425797,1766341840115,-500.0,0.00013643,2]
[399425798,1766341840124,-500.0,0.00013643,2]
[399425799,1766341840134,-500.0,0.00013643,2]
[399425800,1766341840143,-500.0,0.00013643,2]
[399425801,1766341840152,-500.0,0.00013643,2]
[399425802,1766341840162,-500.0,0.00013643,2]
[399425803,1766341840171,-500.0,0.00013643,2]
[399425804,1766341840180,-500.0,0.00013643,2]
[399425805,1766341840189,-500.0,0.00013643,2]
[399425806,1766341840198,-500.0,0.00013643,2]
[399425807,1766341840208,-453.53849539,0.00013643,2]
[399425808,1766341840217,-500.0,0.00013643,2]
[399425809,1766341840227,-500.0,0.00013643,2]
[399425810,1766341840236,-484.06013596,0.00013643,2]
[399425811,1766341840246,-235.55154497,0.00013643,2]
[399425812,1766341840265,-500.0,0.00013643,2]
[399425813,1766341840275,-535.22474582,0.00013643,2]
[399425814,1766341840288,-500.0,0.00013643,2]
[399425815,1766341840298,-500.0,0.00013643,2]
[399425816,1766341840308,-500.0,0.00013643,2]
[399425817,1766341840318,-500.0,0.00013643,2]
[399425818,1766341840327,-500.0,0.00013643,2]
[399425819,1766341840337,-500.0,0.00013643,2]
[399425820,1766341840346,-500.0,0.00013643,2]
[399425821,1766341840357,-500.0,0.00013643,2]
[399425822,1766341840367,-174.36363854,0.00013672,2]
[399425823,1766341840376,-261.824715,0.00013673,2]
[399425824,1766341840385,-500.0,0.00013698,2]
[399425825,1766341840394,-500.0,0.00013698,2]
[399425826,1766341840403,-500.0,0.00013698,2]
[399425827,1766341840412,-500.0,0.00013698,2]
[399425828,1766341840421,-500.0,0.00013698,2]
[399425829,1766341840431,-500.0,0.00013698,2]
[399425830,1766341840440,-500.0,0.00013698,2]
[399425831,1766341840450,-500.0,0.00013698,2]
[399425832,1766341840459,-500.0,0.00013698,2]
[399425833,1766341840468,-500.0,0.00013698,2]
[399425834,1766341840478,-500.0,0.00013698,2]
[399425835,1766341840487,-500.0,0.00013698,2]
[399425836,1766341840497,-500.0,0.00013698,2]
[399425837,1766341840507,-500.0,0.00013698,2]
[399425838,1766341840516,-500.0,0.00013698,2]
[399425839,1766341840525,-500.0,0.00013698,2]
[399425840,1766341840534,-500.0,0.00013698,2]
[399425841,1766341840543,-500.0,0.00013698,2]
[399425842,1766341840552,-500.0,0.00013698,2]
[399425843,1766341840562,-500.0,0.00013698,2]
[399425845,1766341840571,-500.0,0.00013698,2]
[399425847,1766341840581,-500.0,0.00013698,2]
[399425849,1766341840590,-500.0,0.00013698,2]
[399425851,1766341840599,-500.0,0.00013698,2]
[399425853,1766341840609,-500.0,0.00013698,2]
[399425855,1766341840618,-500.0,0.00013698,2]
[399425857,1766341840628,-511.95166241,0.00013698,2]
[399425859,1766341840637,-500.0,0.00013698,2]
[399425861,1766341840647,-500.0,0.00013698,2]
[399425863,1766341840656,-500.0,0.00013698,2]
[399425864,1766341840666,-500.0,0.00013698,2]
[399425865,1766341840676,-500.0,0.00013698,2]
[399425866,1766341840686,-279.56152478,0.00013698,2]
[399425867,1766341840695,-500.0,0.00013698,2]
[399425868,1766341840704,-500.0,0.00013698,2]
[399425869,1766341840713,-500.0,0.00013698,2]
[399425870,1766341840723,-500.0,0.00013698,2]
[399425871,1766341840732,-500.0,0.00013698,2]
[399425872,1766341840742,-500.0,0.00013698,2]
[399425873,1766341840751,-500.0,0.00013698,2]
[399425874,1766341840761,-500.0,0.00013698,2]
[399425875,1766341840770,-500.0,0.00013698,2]
[399425876,1766341840779,-500.0,0.00013698,2]
[399425877,1766341840788,-500.0,0.00013698,2]
[399425878,1766341840798,-500.0,0.00013698,2]
[399425879,1766341840812,-500.0,0.00013698,2]
[399425880,1766341840821,-500.0,0.00013698,2]
[399425881,1766341840831,-500.0,0.00013698,2]
[399425882,1766341840840,-344.15406571,0.00013698,2]
[399425883,1766341840850,-500.0,0.00013698,2]
[399425884,1766341840860,-500.0,0.00013698,2]
[399425886,1766341840870,-500.0,0.00013698,2]
[399425888,1766341840880,-500.0,0.00013698,2]
[399425890,1766341840889,-500.0,0.00013698,2]
[399425892,1766341840899,-500.0,0.00013698,2]
[399425894,1766341840909,-500.0,0.00013698,2]
[399425896,1766341840919,-500.0,0.00013698,2]
[399425898,1766341840929,-208.04,0.00013698,2]
[399425899,1766341840938,-500.0,0.00013698,2]
[399425901,1766341840948,-500.0,0.00013698,2]
[399425902,1766341840957,-500.0,0.00013698,2]
[399425903,1766341840967,-500.0,0.00013698,2]
[399425904,1766341840976,-500.0,0.00013698,2]
[399425905,1766341840986,-500.0,0.00013698,2]
[399425906,1766341840996,-500.0,0.00013698,2]
[399425907,1766341841006,-500.0,0.00013698,2]
[399425908,1766341841016,-500.0,0.00013698,2]
[399425909,1766341841026,-500.0,0.00013698,2]
[399425910,1766341841037,-500.0,0.00013698,2]
[399425911,1766341841048,-500.0,0.00013698,2]
[399425912,1766341841058,-500.0,0.00013698,2]
[399425913,1766341841067,-500.0,0.00013698,2]
[399425914,1766341841077,-500.0,0.00013698,2]
[399425915,1766341841087,-500.0,0.00013698,2]
[399425916,1766341841098,-500.0,0.00013698,2]
[399425917,1766341841107,-500.0,0.00013698,2]
[399425918,1766341841118,-500.0,0.00013698,2]
[399425919,1766341841128,-500.0,0.00013698,2]
[399425920,1766341841139,-200.0,0.00013699,2]
[399425921,1766341841148,-196.43,0.00013699,2]
[399425922,1766341841160,-500.0,0.00013699,2]
[399425923,1766341841169,-500.0,0.00013699,2]
[399425924,1766341841178,-500.0,0.00013699,2]
[399425925,1766341841188,-500.0,0.00013699,2]
[399425926,1766341841202,-500.0,0.00013699,2]
[399425927,1766341841212,-500.0,0.00013699,2]
[399425928,1766341841221,-400.0,0.00013699,2]
[399425929,1766341841231,-500.0,0.00013699,2]
[399425930,1766341841242,-500.0,0.00013699,2]
[399425931,1766341841252,-500.0,0.00013699,2]
[399425932,1766341841261,-500.0,0.00013699,2]
[399425933,1766341841271,-500.0,0.00013699,2]
[399425934,1766341841283,-500.0,0.00013699,2]
[399425935,1766341841294,-500.0,0.00013699,2]
[399425936,1766341841661,-500.0,0.00013699,2]
[399425937,1766341841671,-500.0,0.00013699,2]
[399425938,1766341841681,-500.0,0.00013699,2]
[399425939,1766341841690,-500.0,0.00013699,2]
[399425940,1766341841700,-500.0,0.00013699,2]
[399425941,1766341841709,-500.0,0.00013699,2]
[399425942,1766341841719,-500.0,0.00013699,2]
[399425943,1766341841728,-500.0,0.00013699,2]
[399425944,1766341841737,-500.0,0.00013699,2]
[399425945,1766341841747,-500.0,0.00013699,2]
[399425946,1766341841756,-500.0,0.00013699,2]
[399425947,1766341841765,-500.0,0.00013699,2]
[399425948,1766341841775,-500.0,0.00013699,2]
[399425949,1766341841784,-500.0,0.00013699,2]
[399425950,1766341841794,-500.0,0.00013699,2]
[399425951,1766341841804,-500.0,0.00013699,2]
[399425952,1766341841813,-500.0,0.00013699,2]
[399425953,1766341841823,-500.0,0.00013699,2]
[399425954,1766341841832,-500.0,0.00013699,2]
[399425955,1766341841841,-285.42609192,0.00013699,2]
[399425956,1766341841851,-500.0,0.00013699,2]
[399425957,1766341841864,-2072.78,0.000137,2]
[399425958,1766341841873,-2072.78,0.000137,2]
[399425959,1766341841882,-2072.78,0.000137,2]
[399425960,1766341841892,-2072.78,0.000137,2]
[399425961,1766341841901,-2072.78,0.000137,2]
[399425962,1766341841910,-5329.06,0.000137,2]
[399425963,1766341841919,-5329.06,0.000137,2]
[399425964,1766341841929,-941.82497899,0.00013726,2]
[399425965,1766341841938,-2185.13,0.00013816,2]
[399425966,1766341841948,-500.0,0.00013826,2]
[399425967,1766341841957,-500.0,0.00013826,2]
[399425968,1766341841967,-500.0,0.00013826,2]
[399425969,1766341841976,-151.0,0.00013859,2]
[399425970,1766341841985,-1488.67084219,0.0001389,2]
[399425971,1766341841995,-151.0,0.00014045,2]
[399425972,1766341842005,-2185.13,0.0001409,2]
[399425973,1766341842015,-151.0,0.00014188,2]
[399425974,1766341842024,-500.0,0.0001419,2]
[399425975,1766341842034,-1000.0,0.00014191,2]
[399425976,1766341842043,-1000.0,0.00014191,2]
[399425977,1766341842054,-1000.0,0.00014191,2]
[399425978,1766341842063,-1000.0,0.00014191,2]
[399425979,1766341842074,-1000.0,0.00014191,2]
[399425980,1766341842083,-1000.0,0.00014191,2]
[399425981,1766341842092,-1000.0,0.00014191,2]
[399425982,1766341842102,-1000.0,0.00014191,2]
[399425983,1766341842111,-1000.0,0.00014191,2]
[399425984,1766341842120,-1000.0,0.00014191,2]
[399425985,1766341842130,-1000.0,0.00014191,2]
[399425986,1766341842140,-1000.0,0.00014191,2]
[399425987,1766341842149,-1000.0,0.00014191,2]
[399425988,1766341842159,-1000.0,0.00014191,2]
[399425989,1766341842168,-803.77125516,0.00014191,2]
[399425990,1766341842178,-500.0,0.00014191,2]
[399425991,1766341842187,-1000.0,0.00014191,2]
[399425992,1766341842197,-866.15226393,0.00014191,2]
[399425993,1766341842207,-1000.0,0.00014191,2]
[399425994,1766341842216,-1000.0,0.00014191,2]
[399425995,1766341842226,-1000.0,0.00014191,2]
[399425996,1766341842236,-1000.0,0.00014191,2]
[399425997,1766341842248,-1000.0,0.00014191,2]
[399425998,1766341842259,-1000.0,0.00014191,2]
[399425999,1766341842268,-1000.0,0.00014191,2]
[399426000,1766341842278,-936.70587254,0.00014191,2]
[399426001,1766341842289,-1000.0,0.00014191,2]
[399426002,1766341842299,-1144.26340267,0.00014191,2]
[399426003,1766341842309,-1000.0,0.00014191,2]
[399426004,1766341842319,-500.0,0.00014192,2]
[399426005,1766341842329,-2185.13,0.00014364,2]
[399426006,1766341842339,-1252.0,0.00014463,2]
[399426007,1766341842349,-1152.0,0.00014464,2]
[399426008,1766341842359,-4609.0,0.00014464,2]
[399426009,1766341842368,-151.0,0.00014497,2]
[399426010,1766341842379,-156.587,0.00014497,2]
[399426011,1766341842389,-162.380719,0.00014497,2]
[399426012,1766341842399,-153.50930745,0.00014497,2]
[399426013,1766341842409,-200.0,0.00014497,2]
[399426014,1766341842418,-207.4,0.00014497,2]
[399426015,1766341842428,-215.0738,0.00014497,2]
[399426016,1766341842438,-223.0315306,0.00014497,2]
[399426017,1766341842447,-231.28369723,0.00014497,2]
[399426018,1766341842459,-239.84119403,0.00014497,2]
[399426019,1766341842468,-248.71531821,0.00014497,2]
[399426020,1766341842479,-257.91778498,0.00014497,2]
[399426021,1766341842488,-267.46074303,0.00014497,2]
[399426022,1766341842499,-151.0,0.00014497,2]
[399426023,1766341842508,-300.0,0.00014497,2]
[399426024,1766341842518,-10000.0,0.0001451,2]
[399426025,1766341842527,-2144.0317982,0.0001454,2]
[399426026,1766341842537,-2185.13,0.00014638,2]
[399426027,1766341842546,-833.7673616,0.00014639,2]
[399426028,1766341842556,-597.40388542,0.00014739,2]
[399426029,1766341842565,-158.72296276,0.00014739,2]
[399426030,1766341842575,-858.60637341,0.00014739,2]
[399426031,1766341842584,-1500.0,0.00014739,2]
[399426032,1766341842594,-1500.0,0.00014739,2]
[399426033,1766341842603,-1500.0,0.00014739,2]
[399426034,1766341842613,-1500.0,0.00014739,2]
[399426035,1766341842622,-1500.0,0.00014739,2]
[399426036,1766341842631,-1500.0,0.00014739,2]
[399426037,1766341842643,-1500.0,0.00014739,2]
[399426038,1766341842653,-1500.0,0.00014739,2]
[399426039,1766341842662,-1503.75804982,0.00014739,2]
[399426040,1766341842672,-1500.0,0.00014739,2]
[399426041,1766341842681,-1500.0,0.00014739,2]
[399426042,1766341842692,-1500.0,0.00014739,2]
[399426043,1766341842701,-1500.0,0.00014739,2]
[399426044,1766341842710,-1500.0,0.00014739,2]
[399426045,1766341842720,-500.84654228,0.00014739,2]
[399426046,1766341842730,-1500.0,0.00014739,2]
[399426047,1766341842739,-1500.0,0.00014739,2]
[399426049,1766341842749,-1500.0,0.00014739,2]
[399426050,1766341842759,-980.21424336,0.00014739,2]
[399426052,1766341842769,-789.33467407,0.00014739,2]
[399426053,1766341842778,-1500.0,0.00014739,2]
[399426054,1766341842787,-1488.67084219,0.00014893,2]
[399426055,1766341842796,-226.46240275,0.000149,2]
[399426056,1766341842806,-2185.13,0.00014912,2]
[399426057,1766341842815,-5014.92,0.00014999,2]
[399426058,1766341842825,-2040.75911121,0.00015,2]
[399426059,1766341842835,-1344.08769236,0.00015,14]
[399426060,1766341842844,-7944.46519883,0.00015,2]
[399426061,1766341842854,-21352.27553926,0.00015,2]
[399426062,1766341842863,-1154.75497368,0.00015,2]
[399426063,1766341842873,-25859.84987091,0.00015,2]
[399426064,1766341842882,-833.76736157,0.00015091,2]
[399426065,1766341842892,-500.0,0.00015127,2]
[399426066,1766341842901,-2185.32190316,0.00015185,2]
[399426067,1766341842910,-150.0,0.00015233,2]
[399426068,1766341842920,-666.07222089,0.00015287,2]
[399426069,1766341842930,-1500.98434959,0.00015287,2]
[399426070,1766341842939,-436.03619538,0.00015287,2]
[399426071,1766341842949,-2000.0,0.00015287,2]
[399426072,1766341842958,-158.38653664,0.00015287,2]
[399426073,1766341842967,-2000.0,0.00015287,2]
[399426075,1766341842977,-2000.0,0.00015287,2]
[399426076,1766341842987,-2000.0,0.00015287,2]
[399426077,1766341842996,-2000.0,0.00015287,2]
[399426078,1766341843006,-1071.82272799,0.00015287,2]
[399426079,1766341843015,-2000.0,0.00015287,2]
[399426080,1766341843024,-2000.0,0.00015287,2]
[399426081,1766341843034,-711.67995912,0.00015287,2]
[399426082,1766341843043,-2000.0,0.00015287,2]
[399426084,1766341843053,-629.20788422,0.00015287,2]
[399426086,1766341843062,-2000.0,0.00015287,2]
[399426088,1766341843071,-1004.443568,0.00015287,2]
[399426090,1766341843081,-1517.64,0.000153,2]
[399426091,1766341843091,-942.62870133,0.00015313,2]
[399426092,1766341843100,-505.3255501,0.00015375,2]
[399426093,1766341843109,-505.85702931,0.000154,2]
[399426094,1766341843119,-833.76736157,0.00015543,2]
[399426095,1766341843128,-16701.27872054,0.00015556,2]
[399426096,1766341843137,-153.350733,0.00015556,2]
[399426097,1766341843147,-151.0,0.00015556,2]
[399426098,1766341843157,-151.0,0.00015556,2]
[399426099,1766341843168,-2228.99632343,0.00015807,2]
[399426100,1766341843177,-941.82497899,0.00015813,2]
[399426101,1766341843186,-2500.0,0.00015835,2]
[399426102,1766341843196,-2500.0,0.00015835,2]
[399426103,1766341843205,-2500.0,0.00015835,2]
[399426104,1766341843215,-2014.45362555,0.00015835,2]
[399426105,1766341843226,-1808.82072669,0.00015835,2]
[399426106,1766341843235,-1087.77987847,0.00015835,2]
[399426107,1766341843244,-2500.0,0.00015835,2]
[399426108,1766341843254,-2000.0,0.00015835,2]
[399426109,1766341843263,-2500.0,0.00015835,2]
[399426110,1766341843272,-277.35679052,0.00015866,2]
[399426111,1766341843285,-151.0,0.00015866,2]
[399426112,1766341843295,-311.1,0.00015866,2]
[399426113,1766341843304,-753.41634726,0.000159,2]
[399426114,1766341843314,-367.03301354,0.000159,2]
[399426115,1766341843323,-560.0,0.0001591,2]
[399426116,1766341843333,-6453.0,0.0001591,2]
[399426117,1766341843342,-2129.0,0.00015915,2]
[399426118,1766341843352,-500.0,0.00015972,2]
[399426119,1766341843361,-757.15342507,0.0001599,2]
[399426120,1766341843371,-833.76736157,0.00015996,2]
[399426121,1766341843380,-151.0,0.00015997,2]
[399426122,1766341843390,-151.0,0.00015997,2]
[399426123,1766341843410,-151.0,0.00015997,2]
[399426125,1766341843419,-23721.69410328,0.00016,2]
[399426127,1766341843429,-2203512.40116566,0.00016,4]
[399426128,1766341843438,-151.0,0.00016,2]
[399426129,1766341843448,-151.0,0.00016,2]
[399426130,1766341843458,-38082.51200145,0.0001612,2]
[399426131,1766341843468,-151.0,0.00016121,2]
[399426132,1766341843477,-500.0,0.00016131,2]
[399426133,1766341843487,-500.0,0.00016131,2]
[399426134,1766341843497,-500.0,0.00016131,2]
[399426135,1766341843507,-5000.00832082,0.000162,5]
[399426136,1766341843517,-4778.7482,0.00016338,2]
[399426137,1766341843527,-10000.0,0.00016338,2]
[399426138,1766341843537,-3000.0,0.00016383,2]
[399426139,1766341843546,-638.30499273,0.00016383,2]
[399426140,1766341843556,-2351.34245587,0.00016383,2]
[399426141,1766341843566,-2954.77156402,0.00016383,2]
[399426142,1766341843576,-3000.0,0.00016383,2]
[399426143,1766341843586,-151.0,0.00016438,2]
[399426144,1766341843597,-293.018097,0.00016438,2]
[399426145,1766341843606,-293.018097,0.00016438,2]